{"text_format":"3","workbook":"xlsx","n_sheets":1,"sheets":["Troškovi pokretanja poslovanja"],"not_rendered":{"defined_names":1},"read":"whole","date_system":"1900"}

{"sheet":"Troškovi pokretanja poslovanja","index":0,"n_rows":120,"n_cols":4,"rows_kept":120,"merged":[[1,1,1,3],[10,1,10,3],[17,1,17,3],[25,1,25,3],[34,1,34,3],[42,1,42,3],[50,1,50,3],[55,1,55,3],[57,1,57,3],[59,1,59,3],[60,1,60,3],[69,1,69,3],[76,1,76,3],[81,1,81,3],[82,1,82,3],[90,1,90,3],[102,1,102,3],[110,1,110,3],[115,1,115,3]]}
["TROŠKOVI POKRETANJA",null,null,"IME PREDUZEĆA, LTD"]
[null,"NAPOMENA ZA KORIŠĆENJE OVOG RADNOG LISTA\nSkoro svako ko je ikada započeo poslovanje potcenio je troškove, a zatim se suočio sa opasnošću neadekvatnih kapitalnih rezervni. Da biste izbegli ovu zamku, potrebno je da usvojite rigorozan pristup za istraživanje i planiranje. Naš predložak Troškovi pokretanja poslovanja vodiće vas kroz proces.\n\nPOČNITE TAKO ŠTO ĆETE PROCENITI TROŠKOVE\nKoliko će koštati pokretanje poslovanja? Ključno je da posvetite pažnju detaljima. Za svaku kategoriju troškova sastavite listu svega što morate da kupite. To će uključiti materijalna sredstva (na primer opremu, zalihe), kao i usluge (na primer rekonstrukciju, osiguranje). Zatim utvrdite gde možete da kupite ovu robu ili usluge. Istražite više dobavljača; tj. uporedite prodavnice. Ne gledajte samo cenu; uslovi plaćanja, isporuka, pouzdanost i usluga takođe su veoma važni. "]
[]
[null,"TROŠKOVI POKRETANJA"]
[null,"ZGRADA/NEKRETNINE"," ","IZNOS"]
[null,"Kupovina",null,{"v":0,"d":"0.00 RSD"}]
[null,"Izgradnja",null,{"v":0,"d":"0.00 RSD"}]
[null,"Renoviranje",null,{"v":0,"d":"0.00 RSD"}]
[null,"Drugo",null,{"v":0,"d":"0.00 RSD"}]
[null,"Ukupno",null,{"$f":"SUBTOTAL(109,Nekretnine[IZNOS])","v":{"v":0,"d":"0.00 RSD"}}]
[]
[null,"POBOLJŠANJA ZAKUPA"," ","IZNOS"]
[null,"Stavka 1",null,{"v":0,"d":"0.00 RSD"}]
[null,"Stavka 2",null,{"v":0,"d":"0.00 RSD"}]
[null,"Stavka 3",null,{"v":0,"d":"0.00 RSD"}]
[null,"Stavka 4",null,{"v":0,"d":"0.00 RSD"}]
[null,"Ukupno",null,{"$f":"SUBTOTAL(109,Poboljšanja[IZNOS])","v":{"v":0,"d":"0.00 RSD"}}]
[]
[null,"LISTA KAPITALNE OPREME"," ","IZNOS"]
[null,"Nameštaj",null,{"v":0,"d":"0.00 RSD"}]
[null,"Oprema",null,{"v":0,"d":"0.00 RSD"}]
[null,"Priključci",null,{"v":0,"d":"0.00 RSD"}]
[null,"Mašinstvo",null,{"v":0,"d":"0.00 RSD"}]
[null,"Drugo",null,{"v":0,"d":"0.00 RSD"}]
[null,"Ukupno",null,{"$f":"SUBTOTAL(109,Kapital[IZNOS])","v":{"v":0,"d":"0.00 RSD"}}]
[]
[null,"TROŠKOVE ZA LOKACIJU I ADMINISTRACIJU"," ","IZNOS"]
[null,"Iznajmljivanje",null,{"v":0,"d":"0.00 RSD"}]
[null,"Depoziti za usluge",null,{"v":0,"d":"0.00 RSD"}]
[null,"Pravne i računovodstvene naknade",null,{"v":0,"d":"0.00 RSD"}]
[null,"Prepaid osiguranje",null,{"v":0,"d":"0.00 RSD"}]
[null,"Plate pre otvaranja ",null,{"v":0,"d":"0.00 RSD"}]
[null,"Drugo",null,{"v":0,"d":"0.00 RSD"}]
[null,"Ukupno",null,{"$f":"SUBTOTAL(109,Administrativni_troškovi[IZNOS])","v":{"v":0,"d":"0.00 RSD"}}]
[]
[null,"OPENING INVENTORY"," ","IZNOS"]
[null,"Kategorija 1",null,{"v":0,"d":"0.00 RSD"}]
[null,"Kategorija 2",null,{"v":0,"d":"0.00 RSD"}]
[null,"Kategorija 3",null,{"v":0,"d":"0.00 RSD"}]
[null,"Kategorija 4",null,{"v":0,"d":"0.00 RSD"}]
[null,"Kategorija 5",null,{"v":0,"d":"0.00 RSD"}]
[null,"Ukupno",null,{"$f":"SUBTOTAL(109,Zalihe_prilikom_otvaranja[IZNOS])","v":{"v":0,"d":"0.00 RSD"}}]
[]
[null,"TROŠKOVI REKLAMIRANJA I PROMOTIVNI TROŠKOVE"," ","IZNOS"]
[null,"Reklamiranje",null,{"v":0,"d":"0.00 RSD"}]
[null,"Potpis",null,{"v":0,"d":"0.00 RSD"}]
[null,"Štampanje",null,{"v":0,"d":"0.00 RSD"}]
[null,"Putovanja/zabava",null,{"v":0,"d":"0.00 RSD"}]
[null,"Ostale/dodatne kategorije",null,{"v":0,"d":"0.00 RSD"}]
[null,"Ukupno",null,{"$f":"SUBTOTAL(109,Troškovi_promocije[IZNOS])","v":{"v":0,"d":"0.00 RSD"}}]
[]
[null,"OSTALI TROŠKOVI"," ","IZNOS"]
[null,"Drugi troškovi 1",null,{"v":0,"d":"0.00 RSD"}]
[null,"Drugi troškovi 2",null,{"v":0,"d":"0.00 RSD"}]
[null,"Ukupno",null,{"$f":"SUBTOTAL(109,DrugiTroškovi[IZNOS])","v":{"v":0,"d":"0.00 RSD"}}]
[]
[null,"Za nepredviđene slučajeve",null,{"v":0,"d":"0.00 RSD"}]
[]
[null,"Obrtni kapital ",null,{"v":0,"d":"0.00 RSD"}]
[]
[null,"DODAVANJE REZERVI ZA NEPREDVIĐENE SLUČAJEVE\nObavezno objasnite kako ste odlučili koji iznos ćete staviti u ovu rezervu. \n\nODREDITE PROTOK GOTOVINE\nNe možete početi sa radom sa praznim bankovnim računom. Gotovina će vam biti potrebna za plaćanje troškova dok se poslovanje razvija. Mogli biste da uradite projekciju protoka gotovine za 12 meseci. Ovde ćete napraviti procenu potreba obrtnog kapitala. Za sada, ostavite ovaj red prazan ili stavite okvirnu cifru. Pošto ste završili sa protokom gotovine, možete da se vratite i unesete brižljivo istražene iznose.\n\nUNESITE IZVORE KAPITALA\nSada kada ste procenili koliko kapitala će vam biti potrebno za početak, trebalo bi da obratite pažnju na gornji deo ovog radnog lista. Unesite iznose koje ćete sami obezbediti, koliko će ubaciti partneri ili investitori i koliko novca će biti obezbeđeno pozajmicom."]
[]
[null,"IZVORI KAPITALA"]
[null,"INVESTICIJA VLASNIKA (IME I VLASNIŠTVO %)"," ","IZNOS"]
[null,"Ime i procenat vlasništva",null,{"v":0,"d":"0.00 RSD"}]
[null,"Drugi investitor",null,{"v":0,"d":"0.00 RSD"}]
[null,"Drugi investitor",null,{"v":0,"d":"0.00 RSD"}]
[null,"Drugi investitor",null,{"v":0,"d":"0.00 RSD"}]
[null,"Ukupno",null,{"$f":"SUBTOTAL(109,Investicije_vlasnika[IZNOS])","v":{"v":0,"d":"0.00 RSD"}}]
[]
[null,"BANKOVNI ZAJMOVI"," ","IZNOS"]
[null,"Banka 1",null,{"v":0,"d":"0.00 RSD"}]
[null,"Banka 2",null,{"v":0,"d":"0.00 RSD"}]
[null,"Banka 3",null,{"v":0,"d":"0.00 RSD"}]
[null,"Banka 4",null,{"v":0,"d":"0.00 RSD"}]
[null,"Ukupno",null,{"$f":"SUBTOTAL(109,Bankovni_krediti[IZNOS])","v":{"v":0,"d":"0.00 RSD"}}]
[]
[null,"DRUGI KREDITI"," ","IZNOS"]
[null,"Izvor 1",null,{"v":0,"d":"0.00 RSD"}]
[null,"Izvor 2",null,{"v":0,"d":"0.00 RSD"}]
[null,"Ukupno",null,{"$f":"SUBTOTAL(109,Drugi_krediti[IZNOS])","v":{"v":0,"d":"0.00 RSD"}}]
[]
[null,"DOKAZ GUBITAKA\nAko planirate da koristite ovaj plan kao podršku zahtevu za bankarski kredit, koristite odeljak pri dnu da biste pokazali koja sredstva nudite kao garanciju kredita i procenite vrednost tih stavki. Budite spremni da ponudite neki dokaz o procenama vrednosti garancije."]
[]
[null,"SAŽETA IZJAVA"]
[null,"IZVOR KAPITALA"," ","UKUPNE VREDNOSTI"]
[null,"Vlasnički kapital i druge investicije",null,{"$f":"Investicije_vlasnika[[#Totals],[IZNOS]]","v":{"v":0,"d":"0.00 RSD"}}]
[null,"Bankovni krediti",null,{"$f":"Bankovni_krediti[[#Totals],[IZNOS]]","v":{"v":0,"d":"0.00 RSD"}}]
[null,"Drugi krediti",null,{"$f":"Drugi_krediti[[#Totals],[IZNOS]]","v":{"v":0,"d":"0.00 RSD"}}]
[null,"Ukupno",null,{"$f":"SUBTOTAL(109,Izvori_kapitala[UKUPNE VREDNOSTI])","v":{"v":0,"d":"0.00 RSD"}}]
[]
[null,"TROŠKOVI POKRETANJA"," ","UKUPNE VREDNOSTI"]
[null,"Zgrade/nekretnine",null,{"$f":"Nekretnine[[#Totals],[IZNOS]]","v":{"v":0,"d":"0.00 RSD"}}]
[null,"Poboljšanja zakupa",null,{"$f":"Poboljšanja[[#Totals],[IZNOS]]","v":{"v":0,"d":"0.00 RSD"}}]
[null,"Kapitalna oprema",null,{"$f":"Kapital[[#Totals],[IZNOS]]","v":{"v":0,"d":"0.00 RSD"}}]
[null,"Troškovi lokacije/administracije",null,{"$f":"Administrativni_troškovi[[#Totals],[IZNOS]]","v":{"v":0,"d":"0.00 RSD"}}]
[null,"Zalihe otvaranja",null,{"$f":"Zalihe_prilikom_otvaranja[[#Totals],[IZNOS]]","v":{"v":0,"d":"0.00 RSD"}}]
[null,"Troškovi oglašavanja/promotivni troškovi",null,{"$f":"Troškovi_promocije[[#Totals],[IZNOS]]","v":{"v":0,"d":"0.00 RSD"}}]
[null,"Ostali troškovi",null,{"$f":"DrugiTroškovi[[#Totals],[IZNOS]]","v":{"v":0,"d":"0.00 RSD"}}]
[null,"Fond za nepredviđene situacije",null,{"$f":"SUM('Troškovi pokretanja poslovanja'!$C$57)","v":{"v":0,"d":"0.00 RSD"}}]
[null,"Obrtni kapital",null,{"$f":"SUM('Troškovi pokretanja poslovanja'!$C$59)","v":{"v":0,"d":"0.00 RSD"}}]
[null,"Ukupno",null,{"$f":"SUBTOTAL(109,Troškovi_pokretanja_poslovanja[UKUPNE VREDNOSTI])","v":{"v":0,"d":"0.00 RSD"}}]
[]
[null,"OBEZBEĐENJE I GARANCIJA ZA PREDLOG KREDITA"]
[null,"GARANCIJA ZA KREDITE","OPIS","VREDNOST"]
[null,"Nekretnine",null,{"v":0,"d":"0.00 RSD"}]
[null,"Druge garancije",null,{"v":0,"d":"0.00 RSD"}]
[null,"Druge garancije",null,{"v":0,"d":"0.00 RSD"}]
[null,"Druge garancije",null,{"v":0,"d":"0.00 RSD"}]
[null,"Ukupno",null,{"$f":"SUBTOTAL(109,Garancije[VREDNOST])","v":{"v":0,"d":"0.00 RSD"}}]
[]
[null,"VLASNICI"," ","  "]
[null,"Vaše ime ovde"]
[null,"Drugi vlasnik"]
[null,"Drugi vlasnik"]
[]
[null,"ŽIRANTI (OSIM VLASNIKA)"," ","  "]
[null,"Žirant 1"]
[null,"Žirant 2"]
[null,"Žirant 3"]